Cogmind - Beta 12 @@@ ROGUE MODE // 2023.03.17 @ 06:19:06 Player: HybriD Result: Destroyed by H-61 Shepherd with Heavy Assault Cannon Performance ------------- Evolutions (4) 2000 Regions Visited (9) 1800 Robots Destroyed (39) 195 Value Destroyed (1545) 1545 Prototype IDs (31) 620 Alien Tech Used (0) 0 Bonus (599) 599 TOTAL SCORE: 6759 Bonus ------- Follower Combat Kills 309 Aligned with FarCom 300 Friendly Fire -10 Cogmind --------- Core Integrity 0/850 Matter 287/300 Energy 98/100 System Corruption 0% Temperature Cool (0) Movement Core (50) Location -6/Factory Parts ------- > --- POWER (2) -------- (None) > --- PROPULSION (4) --- (None) > --- UTILITY (6) ------ Enhanced Optical Array > --- WEAPON (3) ------- (None) > --- INVENTORY (5) ---- (None) Peak State ------------ > --- POWER ------------ Light Angular Momentum Engine Light Fission Core > --- PROPULSION ------- Gravmag System Gravmag System > --- UTILITY ---------- Medium Storage Unit Enhanced Optical Array Improved Sensor Array Cloaking Device Improved Light Armor Plating Focal Shield > --- WEAPON ----------- Field Laser Heavy Particle Cannon High-powered Shotgun > --- INVENTORY -------- Micro Nuclear Core Improved Medium Treads Improved Heat Sink High-powered Shotgun [Rating: 50] Favorites ----------- Power Ion Engine Engine Ion Engine Power Core Micro Nuclear Core Propulsion Hover Unit Treads Improved Medium Treads Leg Carbon-fiber Leg Wheel Wheel Hover Unit Hover Unit Utility Medium Storage Unit Device Sensor Array Storage Medium Storage Unit Processor Advanced Visual Processing Unit Hackware Makeshift Hacking Suite Protection Improved Medium Armor Plating Weapon Assault Rifle Energy Gun Small Laser Energy Cannon EM Pulse Cannon Ballistic Gun Assault Rifle Ballistic Cannon Assault Cannon Slashing Weapon Katana Build | -11 -10 -10 -10 -9 -8 -7 -7 -7 -6 ------- Run | Jun Mat Min Exi Min Mat Fac Low Low Fac Slots Evolved 8 | . . . . . 4 2 . . 2 Power 1 | . . . . . . 1 . . . Propulsion 2 | . . . . . 1 1 . . . Utility 4 | . . . . . 3 . . . 1 Weapon 1 | . . . . . . . . . 1 Parts Attached 83 | 6 5 . 4 10 9 6 3 11 29 Power 13 | 1 . . . 1 . 4 . 2 5 Engine 8 | 1 . . . 1 . 2 . 1 3 Core 5 | . . . . . . 2 . 1 2 Reactor . | . . . . . . . . . . Propulsion 25 | 2 4 . . 4 3 1 1 2 8 Treads 3 | . . . . . . . . . 3 Leg 2 | . . . . . . . . 2 . Wheel 8 | 2 2 . . 2 . . . . 2 Hover 12 | . 2 . . 2 3 1 1 . 3 Flight . | . . . . . . . . . . Utility 21 | 1 1 . 3 1 4 1 1 1 8 Device 9 | . 1 . 2 . 1 . 1 . 4 Storage 4 | 1 . . 1 . . . . . 2 Processor 3 | . . . . . 2 . . . 1 Hackware 1 | . . . . . . . . 1 . Protection 4 | . . . . 1 1 1 . . 1 Artifact . | . . . . . . . . . . Weapon 24 | 2 . . 1 4 2 . 1 6 8 Energy Gun 7 | . . . 1 1 . . 1 1 3 Energy Cannon 4 | . . . . . 1 . . 1 2 Ballistic Gun 11 | 2 . . . 3 1 . . 2 3 Ballistic Cannon 1 | . . . . . . . . 1 . Launcher . | . . . . . . . . . . Special Weapon . | . . . . . . . . . . Impact Weapon . | . . . . . . . . . . Slashing Weapon 1 | . . . . . . . . 1 . Piercing Weapon . | . . . . . . . . . . Special Melee Weapon . | . . . . . . . . . . Unidentified Prototypes 4 | . . . 2 . . 1 . . 1 Corrupted Parts 1 | . . . . . . . . 1 . System Corruption 6 | . . . . . . . . 6 . Parts Lost 38 | . . . . 2 . . 2 16 18 Power 5 | . . . . . . . . 3 2 Propulsion 12 | . . . . 1 . . 1 5 5 Utility 11 | . . . . 1 . . 1 4 5 Weapon 10 | . . . . . . . . 4 6 Highest Loss Streak 16 | . . . . 2 . . 2 11 16 To Critical Strikes . | . . . . . . . . . . Average Slot Usage (%) 77 | . 97 100 90 98 93 98 98 48 41 Engine 7 | . 14 14 14 14 9 11 7 . 2 Core 3 | . . . . . . 2 7 6 2 Leg 2 | . . . . . . . . 9 . Wheel 8 | . 26 28 28 27 . . . . 1 Hover 10 | . 1 . . . 27 28 29 . 2 Device 8 | . 11 14 13 13 8 7 6 . 10 Storage 8 | . 14 14 14 14 9 7 7 6 2 Processor 7 | . . . . . 12 15 15 7 6 Protection 2 | . . . . . 9 7 7 . 1 Energy Gun 5 | . . . 8 13 7 . 4 3 2 Energy Cannon 2 | . . . . . 1 7 7 . 3 Ballistic Gun 6 | . 28 28 10 13 9 7 2 3 2 Naked Turns . | . . . . . . . . . . Heaviest Build 44 | 12 13 13 22 25 33 41 38 26 44 Greatest Support 30 | 20 20 20 20 22 18 24 24 30 30 Greatest Overweight (x) 8 | . . . 1 2 1 2 2 8 8 Average Overweight (x) . | . . . . . 1 1 1 . . Largest Inventory Capacity 10 | 8 8 8 10 10 10 10 10 10 10 Average Capacity 9 | 6 8 8 9 10 10 10 10 9 7 Most Carried 10 | 3 6 6 10 10 9 10 10 10 6 Average Carried 7 | 1 3 6 8 9 7 9 9 5 2 Final Capacity 10 | 8 8 8 10 10 10 10 10 5 5 Final Carried 10 | 2 6 6 10 10 8 10 10 1 . Class Distribution -------------------- 83% | Mutant 13% | Skirmisher 3% | Tank Dominant Class ---------------- Mutant | -10/Materials Mutant | -10/Mines Mutant | -10/Exiles Skirmisher | -9/Mines Mutant | -8/Materials Mutant | -7/Factory Mutant | -7/Lower Caves Mutant | -7/Lower Caves Mutant | -6/Factory Resources | -11 -10 -10 -10 -9 -8 -7 -7 -7 -6 ----------- Run | Jun Mat Min Exi Min Mat Fac Low Low Fac Matter Collected 1364 | 230 . . . 295 55 147 78 283 276 Remotely . | . . . . . . . . . . Salvage Created 1654 | . . . . 310 . 338 330 337 339 Parts 70 | . . . . 21 . 16 11 9 13 Haulers Intercepted . | . . . . . . . . . . Recyclers Shooed . | . . . . . . . . . . Parts Field Recycled . | . . . . . . . . . . Retrieved Matter . | . . . . . . . . . . Parts Self-Destructed 17 | . . . . . . . 8 9 . Prevented 13 | . . . . . . . 6 7 . Kills | -11 -10 -10 -10 -9 -8 -7 -7 -7 -6 ------- Run | Jun Mat Min Exi Min Mat Fac Low Low Fac Combat Hostiles Destroyed 38 | . . . . 11 . 6 6 9 6 Guns 24 | . . . . 11 . 3 1 4 5 Cannons 14 | . . . . . . 3 5 5 1 Classes Destroyed 7 | . . . . 2 . 2 1 1 1 Watcher 1 | . . . . . . 1 . . . Swarmer 10 | . . . . 6 . . 1 3 . Grunt 20 | . . . . 5 . 5 4 2 4 Brawler 1 | . . . . . . 1 . . . Sentry 2 | . . . . . . . 1 . 1 Programmer 1 | . . . . . . . . . 1 Thug 1 | . . . . . . . . 1 . Butcher 3 | . . . . . . . . 3 . Best Kill Streak 5 | . . . . 3 . 5 4 4 2 Combat Bots Only 4 | . . . . 3 . 4 4 4 2 Max Kills in Single Turn 2 | . . . . 2 . 1 1 1 1 Gunslinging 1 | . . . . 1 . . . . . Exploded . | . . . . . . . . . . Melee . | . . . . . . . . . . Uniques/NPCs Destroyed . | . . . . . . . . . . Combat | -11 -10 -10 -10 -9 -8 -7 -7 -7 -6 -------- Run | Jun Mat Min Exi Min Mat Fac Low Low Fac Damage Taken 4969 | . . . . 336 31 282 394 1424 2502 Core 1546 | . . . . 83 . 16 127 451 869 Absorbed by Shields . | . . . . . . . . . . Core Remaining (%) 70 | 100 . . . 66 100 . . 15 . Volleys Fired 122 | . . . . 22 1 17 16 37 29 Largest 3 | . . . . 2 2 2 2 2 3 Hottest 163 | . . . . 60 63 86 128 128 163 Shots Fired 238 | . . . . 44 2 34 30 66 62 Gun 167 | . . . . 44 2 17 14 45 45 Cannon 71 | . . . . . . 17 16 21 17 Launcher . | . . . . . . . . . . Special . | . . . . . . . . . . Kinetic 97 | . . . . 27 1 17 8 25 19 Thermal 101 | . . . . 17 1 . 6 34 43 Explosive . | . . . . . . . . . . Electromagnetic 40 | . . . . . . 17 16 7 . Robot Hit Streak 13 | . . . . 11 6 12 8 7 13 Robot Miss Streak 4 | . . . . 4 . 2 2 3 3 Penetration Max . | . . . . . . . . . . Secondary Targets 3 | . . . . 2 . . . . 1 Max Gunslinging Chain 1 | . . . . 1 . . . . 1 Shots Hit Robots 171 | . . . . 26 2 29 23 47 44 Core Hits 83 | . . . . 16 1 15 12 20 19 Critical Kills . | . . . . . . . . . . Critical Parts Destroyed . | . . . . . . . . . . Critical Strikes 2 | . . . . . . . . 2 . Burn 1 | . . . . . . . . 1 . Blast 1 | . . . . . . . . 1 . Melee Attacks 2 | . . . . . . . . 2 . Impact . | . . . . . . . . . . Slashing 2 | . . . . . . . . 2 . Piercing . | . . . . . . . . . . Sneak Attacks . | . . . . . . . . . . Combat Hostiles . | . . . . . . . . . . Follow-up Attacks . | . . . . . . . . . . Damage Inflicted 3330 | . . . . 329 34 615 499 939 914 Guns 1923 | . . . . 329 34 188 143 577 652 Cannons 1369 | . . . . . . 427 356 330 256 Explosions . | . . . . . . . . . . Melee 32 | . . . . . . . . 32 . Ramming 6 | . . . . . . . . . 6 Kinetic 1218 | . . . . 205 23 188 97 431 274 Thermal 1163 | . . . . 124 11 . 46 348 634 Explosive . | . . . . . . . . . . Electromagnetic 911 | . . . . . . 427 356 128 . Impact . | . . . . . . . . . . Slashing 32 | . . . . . . . . 32 . Piercing . | . . . . . . . . . . Highest Corruption 6 | . . . . . . . . 6 . Average Corruption 6 | . . . . . . . . 6 . Corruption Purged . | . . . . . . . . . . Corruption Blocked . | . . . . . . . . . . Effects 26 | . . . . . . . . 26 . Message Errors 3 | . . . . . . . . 3 . Matter Fused 7 | . . . . . . . . 7 . Heat Flow Errors 2 | . . . . . . . . 2 . Energy Discharges 2 | . . . . . . . . 2 . Parts Fused 1 | . . . . . . . . 1 . Data Loss (minor) 5 | . . . . . . . . 5 . Data Loss (major) 4 | . . . . . . . . 4 . Misfires 1 | . . . . . . . . 1 . Weapon Failures 1 | . . . . . . . . 1 . Overload Shots . | . . . . . . . . . . Overflow Damage 19 | . . . . . . 19 . . . Projectiles 19 | . . . . . . 19 . . . Explosions . | . . . . . . . . . . Melee . | . . . . . . . . . . Knockbacks 4 | . . . . . . . . 4 . Impact . | . . . . . . . . . . Kinetic 3 | . . . . . . . . 3 . Secondary 1 | . . . . . . . . 1 . Self-Inflicted Damage 2 | . . . . . . . . . 2 Shots . | . . . . . . . . . . Rammed 4 | . . . . . . . . . 4 Targets Rammed 4 | . . . . . . . . . 4 Kicked . | . . . . . . . . . . Crushed . | . . . . . . . . . . Highest Temperature 557 | . . . . 47 2 162 344 464 557 Average Temperature 157 | . . . . 33 2 69 137 203 171 Received Heat Transfer 1953 | . . . . 132 9 165 201 306 1140 Effects 14 | . . . . . . . 1 5 8 Shutdowns 5 | . . . . . . . 1 1 3 Energy Bleed 3 | . . . . . . . . 1 2 Interference 3 | . . . . . . . . . 3 Matter Decay 2 | . . . . . . . . 2 . Short Circuit 1 | . . . . . . . . 1 . Siege Activations . | . . . . . . . . . . Robots Corrupted . | . . . . . . . . . . Combat Hostiles . | . . . . . . . . . . Parts Fried 2 | . . . . . . . . 2 . Impact Corruptions . | . . . . . . . . . . Robots Melted . | . . . . . . . . . . Combat Hostiles . | . . . . . . . . . . Parts Melted 4 | . . . . . . . . 1 3 Heat Transferred 2446 | . . . . 275 25 . 111 888 1147 Parts Sabotaged . | . . . . . . . . . . Parts Stolen 4 | . . . . . . . . 4 . Parts Stripped . | . . . . . . . . . . Power Chain Reactions . | . . . . . . . . . . Missiles Intercepted . | . . . . . . . . . . Alert | -11 -10 -10 -10 -9 -8 -7 -7 -7 -6 ------- Run | Jun Mat Min Exi Min Mat Fac Low Low Fac Peak Influence 298 | . 58 22 . 210 298 297 . . 154 Initial 109 | . . 22 . . 37 109 . . 25 Average 89 | . 26 22 . 82 141 161 . . 54 Maximum Alert Level 1 | . . . . 1 1 1 . . . Low Security (%) 88 | 100 100 100 . 88 68 77 . . 100 Level 1 11 | . . . . 11 31 22 . . . Level 2 . | . . . . . . . . . . Level 3 . | . . . . . . . . . . Level 4 . | . . . . . . . . . . Level 5 . | . . . . . . . . . . High Security . | . . . . . . . . . . Max Security . | . . . . . . . . . . Squads Dispatched 6 | . 1 . . . . 1 . . 4 Investigation 1 | . . . . . . . . . 1 Extermination 1 | . . . . . . . . . 1 Reinforcement 4 | . 1 . . . . 1 . . 2 Assault . | . . . . . . . . . . Garrison . | . . . . . . . . . . Intercept . | . . . . . . . . . . Searches Triggered . | . . . . . . . . . . Construction Impeded . | . . . . . . . . . . Haulers Reinforced . | . . . . . . . . . . Active Scanning Responses . | . . . . . . . . . . Cargo Convoy Interrupts . | . . . . . . . . . . Stealth | -11 -10 -10 -10 -9 -8 -7 -7 -7 -6 --------- Run | Jun Mat Min Exi Min Mat Fac Low Low Fac Distress Signals 5 | . . . . . 4 1 . . . Communications Jammed . | . . . . . . . . . . Distress Signals . | . . . . . . . . . . Times Spotted 89 | . 2 . . 12 7 14 10 21 23 Peak Tracking Total 10 | . 2 . . 3 2 4 5 7 10 Tactical Retreats 12 | . . . . . . 2 3 4 3 Traps | -11 -10 -10 -10 -9 -8 -7 -7 -7 -6 ------- Run | Jun Mat Min Exi Min Mat Fac Low Low Fac Traps Triggered . | . . . . . . . . . . Indirectly . | . . . . . . . . . . Trap Hack Attempts . | . . . . . . . . . . Triggered . | . . . . . . . . . . Disarmed . | . . . . . . . . . . Reprogrammed . | . . . . . . . . . . Reused . | . . . . . . . . . . Traps Extracted . | . . . . . . . . . . Installed . | . . . . . . . . . . Triggered 3 | . . . . . . 1 . 2 . Machines | -11 -10 -10 -10 -9 -8 -7 -7 -7 -6 ---------- Run | Jun Mat Min Exi Min Mat Fac Low Low Fac Machines Disabled 2 | . . . . 1 1 . . . . Max in Single Turn . | . . . . . . . . . . Machines Repaired . | . . . . . . . . . . Machines Sabotaged . | . . . . . . . . . . Overloaded Fab Kills . | . . . . . . . . . . Hacking | -11 -10 -10 -10 -9 -8 -7 -7 -7 -6 --------- Run | Jun Mat Min Exi Min Mat Fac Low Low Fac Machines Accessed 18 | . 2 . 3 . 7 1 . 1 4 Terminals 10 | . 2 . . . 5 1 . 1 1 Fabricators 1 | . . . . . . . . . 1 Repair Stations 1 | . . . . . 1 . . . . Recycling Units 2 | . . . . . . . . . 2 Scanalyzers 1 | . . . . . 1 . . . . Garrison Access . | . . . . . . . . . . Total Hacks 71 | . 6 . 25 . 21 7 . 3 9 Successful 49 | . 3 . 25 . 13 3 . 3 2 Failed 22 | . 3 . . . 8 4 . . 7 Catastrophic 4 | . 2 . . . 1 1 . . . Database Lockouts . | . . . . . . . . . . Manual 9 | . . . 1 . 3 4 . 1 . Terminals 28 | . 6 . . . 11 7 . 3 1 Fabricators 2 | . . . . . . . . . 2 Repair Stations 2 | . . . . . 2 . . . . Recycling Units 6 | . . . . . . . . . 6 Scanalyzers 8 | . . . . . 8 . . . . Garrison Access . | . . . . . . . . . . Terminal Hacks 40 | . 3 . 25 . 5 3 . 3 1 Record 27 | . . . 24 . . . . 3 . Robot Analysis 2 | . . . . . 1 . . . 1 Prototype ID Bank 3 | . 2 . . . . 1 . . . Emergency Access Points 1 | . . . . . 1 . . . . Alert Level 1 | . . . . . 1 . . . . Unreport Threat 1 | . . . . . 1 . . . . Locate Traps 2 | . . . . . 1 1 . . . Zone Layout 2 | . 1 . . . . 1 . . . EX-Prototype ID Bank 1 | . . . 1 . . . . . . Fabricator Hacks . | . . . . . . . . . . Repair Station Hacks 1 | . . . . . 1 . . . . Scan Component 1 | . . . . . 1 . . . . Recycling Unit Hacks 1 | . . . . . . . . . 1 Report Inventory 1 | . . . . . . . . . 1 Scanalyzer 7 | . . . . . 7 . . . . Insert Component 4 | . . . . . 4 . . . . Analyze 3 | . . . . . 3 . . . . Garrison Access Hacks . | . . . . . . . . . . Unauthorized Hacks . | . . . . . . . . . . Terminals . | . . . . . . . . . . Fabricators . | . . . . . . . . . . Repair Stations . | . . . . . . . . . . Recycling Units . | . . . . . . . . . . Scanalyzers . | . . . . . . . . . . Garrison Access . | . . . . . . . . . . Data Cores Recovered 1 | . . . . . . 1 . . . Used . | . . . . . . . . . . Hacking Detections 15 | . 2 . . . 7 1 . 1 4 Full Trace Events 1 | . . . . . . . . . 1 Feedback Events . | . . . . . . . . . . Feedback Blocked . | . . . . . . . . . . Robot Schematics Acquired . | . . . . . . . . . . Robots Built . | . . . . . . . . . . Authchips . | . . . . . . . . . . Time . | . . . . . . . . . . Total Robot Build Rating . | . . . . . . . . . . Part Schematics Acquired 3 | . . . . . 3 . . . . Parts Built . | . . . . . . . . . . Authchips . | . . . . . . . . . . Time . | . . . . . . . . . . Total Part Build Rating . | . . . . . . . . . . Parts Repaired . | . . . . . . . . . . Time . | . . . . . . . . . . Parts Recycled . | . . . . . . . . . . Recycled Matter . | . . . . . . . . . . Retrieved Matter . | . . . . . . . . . . Retrieved Components . | . . . . . . . . . . Parts Scanalyzed 3 | . . . . . 3 . . . . Part Schematics Acquired 3 | . . . . . 3 . . . . Parts Damaged . | . . . . . . . . . . Bothacking | -11 -10 -10 -10 -9 -8 -7 -7 -7 -6 ------------ Run | Jun Mat Min Exi Min Mat Fac Low Low Fac Used RIF Installer . | . . . . . . . . . . Robots Hacked . | . . . . . . . . . . Non-combat . | . . . . . . . . . . Combat . | . . . . . . . . . . Robot Hacks Applied . | . . . . . . . . . . Relay Couplers Released . | . . . . . . . . . . Fabnet Peak Effective % . | . . . . . . . . . . Robots Rewired . | . . . . . . . . . . Allies Hacked . | . . . . . . . . . . Hacks Repelled . | . . . . . . . . . . Allies | -11 -10 -10 -10 -9 -8 -7 -7 -7 -6 -------- Run | Jun Mat Min Exi Min Mat Fac Low Low Fac Total Allies 3 | . . . . 3 . . . . . Largest Group 3 | . . . . 3 3 3 . . . Highest-Rated Group 40 | . . . . 40 40 40 . . . Highest-Rated Ally 16 | . . . . 16 16 16 . . . Total Orders . | . . . . . . . . . . Ally Attacks 67 | . . . . 19 26 15 . 7 . Total Damage 1554 | . . . . 198 959 121 . 276 . Kills 13 | . . . . 1 9 1 . 2 . Allies Corrupted . | . . . . . . . . . . Allies Melted . | . . . . . . . . . . Turrets Deployed 2 | . . . . . 1 . . 1 . Intel | -11 -10 -10 -10 -9 -8 -7 -7 -7 -6 ------- Run | Jun Mat Min Exi Min Mat Fac Low Low Fac Robot Analysis Total 2 | . . . . . 1 . . . 1 Derelict Logs Recovered 5 | . . . . 1 . . 3 1 . Drone Launches . | . . . . . . . . . . Drone Recoveries . | . . . . . . . . . . Exploration | -11 -10 -10 -10 -9 -8 -7 -7 -7 -6 ------------- Run | Jun Mat Min Exi Min Mat Fac Low Low Fac Turns Passed 4807 | 43 135 21 615 630 380 344 910 988 741 Spaces Moved 4109 | 38 148 26 672 585 314 218 747 678 683 Core 505 | 2 . . . . . . . 139 364 Treads 13 | . . . . . . . . . 13 Legs 539 | . . . . . . . . 539 . Wheels 1601 | 36 148 26 672 585 . . . . 134 Hover 1451 | . . . . . 314 218 747 . 172 Flight . | . . . . . . . . . . Fastest Speed 50 | 50 80 80 80 80 112 108 108 50 50 Average Speed 99 | 78 80 80 88 84 112 115 108 125 81 Slowest Speed 450 | 80 80 80 95 120 112 172 172 450 450 Overloaded Moves . | . . . . . . . . . . Propulsion Burnouts . | . . . . . . . . . . Robots Hopped 1 | . . . . . 1 . . . . Cave-ins Triggered . | . . . . . . . . . . Exploration Rate (%) 40 | 4 23 7 93 78 26 7 86 62 14 Regions Visited 9 Branch Regions 5 Pre-discovered Areas 3 | . . . 1 1 . . 1 . . Known Exits Taken . | . . . . . . . . . . Unknown Exits Taken 9 | 1 1 1 1 1 1 1 1 1 . Scrap Searched 5 | . . . . 2 . . 2 1 . Spaces Dug . | . . . . . . . . . . Terrain Destroyed 1 | . . . . . . . . 1 . Melee . | . . . . . . . . . . Projectile 1 | . . . . . . . . 1 . AOE . | . . . . . . . . . . Terrain Rammed . | . . . . . . . . . . Walls Destroyed . | . . . . . . . . . . Machines Disabled . | . . . . . . . . . . Actions | -11 -10 -10 -10 -9 -8 -7 -7 -7 -6 --------- Run | Jun Mat Min Exi Min Mat Fac Low Low Fac Total 4606 | 51 162 25 691 680 340 276 814 751 816 Wait 187 | . 5 . 4 52 5 26 46 14 35 Move 4098 | 37 147 25 671 584 311 217 746 677 683 Hop 1 | . . . . . 1 . . . . Pick Up 65 | 8 5 . 5 4 8 6 2 5 22 Fast Attach 4 | . . . . 1 . 2 1 . . Attach 65 | 6 1 . 3 5 7 2 2 10 29 Detach 12 | . . . 3 2 . . . . 7 Swap 14 | . 4 . 1 4 2 2 . 1 . Drop 28 | . . . 2 6 5 4 1 5 5 Fire 122 | . . . . 22 1 17 16 37 29 Melee 2 | . . . . . . . . 2 . Ram 3 | . . . . . . . . . 3 Kick . | . . . . . . . . . . Crush 1 | . . . . . . . . . 1 Escape Stasis . | . . . . . . . . . . Rewire 4 | . . . 2 . . . . . 2 Trap . | . . . . . . . . . . Miscellaneous . | . . . . . . . . . . Route ------- -11/Junkyard -10/Materials -10/Mines -10/Exiles (discovered 2 exits: [*Min x2]) -9/Mines -8/Materials -7/Factory -7/Lower Caves -7/Lower Caves -6/Factory (discovered 1 exit: Fac) History --------- Turn | Location | Event 17 | -11/Junkyard | Discovered new exit (range 15) 44 | -11/Junkyard | Entered Materials 44 | -10/Materials | Discovered new exit (range 8) 179 | -10/Materials | Entered Mines 180 | -10/Mines | Assembled infested the area 185 | -10/Mines | Assisted by a Guerilla fighting off Assembled 196 | -10/Mines | Deemed a non-threat by the Exiles lab entrance 196 | -10/Mines | Discovered new exit (range 5) 200 | -10/Mines | Entered Exiles 213 | -10/Exiles | Discovered new exit (range 15) 225 | -10/Exiles | Met 8R-AWN 239 | -10/Exiles | Met EX-HEX 310 | -10/Exiles | Met EX-DEC 319 | -10/Exiles | Build established: Mutant 334 | -10/Exiles | Met EX-BIN 399 | -10/Exiles | Aligned with FarCom system 400 | -10/Exiles | Given EX-Vault access code 419 | -10/Exiles | Opened EX-Vault 424 | -10/Exiles | Found Prototype Energy Gun 426 | -10/Exiles | Identified AWS/Thermal 432 | -10/Exiles | Found Prototype Device 433 | -10/Exiles | Identified Chronowheel 433 | -10/Exiles | Activated Chronowheel 438 | -10/Exiles | Found Deploy-a-Sentry 442 | -10/Exiles | Found Deploy-a-Sentry 464 | -10/Exiles | Warned to stay clear of 0b10 Research branches 494 | -10/Exiles | Learned location of Zion (-7) 578 | -10/Exiles | Discovered new exit (range 14) 642 | -10/Exiles | Visited The Gauntlet 815 | -10/Exiles | Stole two prototypes: AWS/Thermal, Deploy-a-Sentry 815 | -10/Exiles | Entered Mines 1156 | -9/Mines | Build established: Skirmisher 1232 | -9/Mines | Assisted by bots powering up and referring to "LRC-V3" 1408 | -9/Mines | Discovered new exit (range 8) 1445 | -9/Mines | Entered Materials 1445 | -8/Materials | Accompanied by 3 allies 1445 | -8/Materials | Evolved 4 slots: Propulsion x1, Utility x3 1540 | -8/Materials | DAS Turret deployed 1719 | -8/Materials | Build established: Mutant 1734 | -8/Materials | Discovered new exit (range 6) 1825 | -8/Materials | Entered Factory 1825 | -7/Factory | Accompanied by 3 allies 1825 | -7/Factory | Evolved 2 slots: Power x1, Propulsion x1 1827 | -7/Factory | FarCom data flow suspended 2139 | -7/Factory | Discovered new exit (range 5) 2169 | -7/Factory | Entered Lower Caves 2404 | -7/Lower Caves | Learned Factory interactive machine intel 2430 | -7/Lower Caves | Attracted the attention of an 0b10 checkpoint 2632 | -7/Lower Caves | Spotted B-75 Beast 2814 | -7/Lower Caves | Learned 4 Factory zone layouts 2989 | -7/Lower Caves | Learned location of Extension (-5) 3058 | -7/Lower Caves | Discovered new exit (range 19) 3079 | -7/Lower Caves | Entered another Lower Caves area 3081 | -7/Lower Caves | Ambushed by wild Derelicts 3125 | -7/Lower Caves | Core integrity fell below 50% 3167 | -7/Lower Caves | Lost 11 parts (2p4n3u2w) 3218 | -7/Lower Caves | Discovered new exit (range 12) 3396 | -7/Lower Caves | Learned location of 1 exit from Proximity Caves 3481 | -7/Lower Caves | Encountered a Warlord checkpoint 3581 | -7/Lower Caves | Attracted the attention of an 0b10 base 3632 | -7/Lower Caves | Core integrity fell below 20% 3656 | -7/Lower Caves | Lost 3 parts (1n1u1w) 3676 | -7/Lower Caves | DAS Turret deployed 3988 | -7/Lower Caves | Spotted 4Y-8MW(f) 3990 | -7/Lower Caves | Encountered a Master Thief 3990 | -7/Lower Caves | Spotted YU-WCV(f) 3991 | -7/Lower Caves | Encountered a Master Thief 3991 | -7/Lower Caves | Spotted TB-U8Z(f) 3992 | -7/Lower Caves | Encountered a Master Thief 3992 | -7/Lower Caves | AWS/Thermal stolen by Master Thief 3994 | -7/Lower Caves | Lgt. Angular Momentum Engine stolen by Master Thief 3997 | -7/Lower Caves | Katana stolen by Master Thief 4067 | -7/Lower Caves | Entered Factory 4067 | -6/Factory | Evolved 2 slots: Utility x1, Weapon x1 4068 | -6/Factory | Identified exit to Factory 4069 | -6/Factory | Loaded intel: 52 interactive machine locations 4625 | -6/Factory | Core integrity fell below 50% 4685 | -6/Factory | Lost 16 parts (2p3n5u6w) 4735 | -6/Factory | Core integrity fell below 20% 4798 | -6/Factory | Spotted B-75 Beast 4808 | -6/Factory | Destroyed by H-61 Shepherd with Heavy Assault Cannon Last Messages --------------- 04646_ Hpw. Shotgun destroyed. 04649_ G-50 Soldier destroyed. 04654_ Hvy. Laser destroyed. 04657_ Dropped Med. Storage Unit. 04658_ M-13 Machinist repairs Adv. Heat Sink. 04659_ Acquired 35 matter. 04727_ K-01 Serf pushes K-01 Serf. 04733_ Dropped Mic. Nuclear Core. 04733_ K-01 Serf pushes K-01 Serf. 04734_ Critical hit (Burn: +37). 04734_ K-01 Serf pushes K-01 Serf. 04735_ K-01 Serf pushes U-05 Engineer. 04737_ K-01 Serf cleans the Matter Pump. 04741_ K-01 Serf latches onto U-05 Engineer. 04741_ K-01 Serf pushes U-05 Engineer. 04743_ Slammed into K-01 Serf. 04793_ K-01 Serf cleans the Assembly Bed. 04800_ Assembly Bed disabled. 04800_ O-24 Administrator: "IFF HANDSHAKE FAILED. SECURING TERMINAL." 04802_ K-01 Serf collects debris. Map ----- +----------------------------------------------------+ | ?????????????????????????????????????????????????? | | ?????????????????????????????????????????????????? | | ?????????????????????????????????????????????????? | | ?????????????????????????????????????????????????? | | ?????????????????????????????????????????????????? | | ????? ???????"??????????????????????????????????? | | ????? ?????"T?????????????????????????????????? | | ????? ????????????????????????????????????????? | | ????? #????????????????????????????????????????? | | ????# #??##########????????????????????????????? | | ????# #??# #????????????????????????????? | | ????# #??# +????????????????????????????? | | ????# #??# #????????????????????????????? | | ????# #??# #???????""???????????????????? | | ???## #### #??????"""???????????????????? | | ???# #??????"R????????????????????? | | ??## ###????"""???????????????????? | | ??? #????"""???????????????????? | | ???# ???????????????????????????? | | ???# ===#?????????????????????? #????? | | ???# """""" ===#??????????????????? ????? | | #### """""" ===################# ???? | | """"""k t ???? | | """""k #??? | | kuR k H +??? | | % "F"" % @ #??? | | """" / #??? | | #########"###+############+########## #??? | | ???????# ??? ??????????????????????????????????? | | ???????????? ??????????????????????????????????? | | ??????????? ?????????????????????????????????? | | ??????????? !!!?????????????????????????????????? | | ?????????? !!! ????????????????????????????????? | | ?????????? !! ????????????????????????????????? | | ????????? ???????????????????????????????? | | ????????? ???????????????????????????????? | | ???????? ??????????????????????????????? | | ???????? ??????????????????????????????? | | ???????# ?????????????????????????????? | | ???????# ?????????????????????????????? | | ???????##############????????????????????????????? | | ?????????????????????????????????????????????????? | | ?????????????????????????????????????????????????? | | ?????????????????????????????????????????????????? | | ?????????????????????????????????????????????????? | | ?????????????????????????????????????????????????? | | ?????????????????????????????????????????????????? | | ?????????????????????????????????????????????????? | | ?????????????????????????????????????????????????? | | ?????????????????????????????????????????????????? | +----------------------------------------------------+ Best States ------------- Heat Dissipation 51 Energy Generation 31 Energy Capacity 450 Matter Stores 300 Matter Capacity 300 Sight Range 22 Robot Scan Range 15 Terrain Scan Density 10 Cloak Strength 2 Armor Coverage 225 Resistance: KI 20 Evasion (%) 55 Targeting Accuracy 8 Recoil Reduction 1 Offensive Hacking 11 Item Schematics ----------------- Minigun | -8/Materials | Scanalyzed Ion Engine | -8/Materials | Scanalyzed Hvy. Particle Cannon | -8/Materials | Scanalyzed Robot Schematics ------------------ None Fabricated ------------ Nothing Alien Tech Used ----------------- None Achievements -------------- None Challenges ------------ None Game ------ Seed SensorAluminumBlaster Manual? 0 Play Time 01:05:12 Cumulative 107.1 hours Start 2023.03.17 @ 05:17:58 End 2023.03.17 @ 06:19:06 Sessions 1 Manual Loads 0 Difficulty Rogue Special Mode None Game No. 105 Rogue 105 Adventurer 0 Explorer 0 Win Type - Total 1 Types 0/0/1/0/0/0/0/0/0 Lore% 43 Gallery% 57 Achievement% 31 Wizard Run 0 Options --------- ASCII 0 Keyboard 0 Movement Mouse Keybinds 0 Fullscreen 2 Font 18/Terminus Map View 76x50 Tactical HUD 1 Map Filters NONE Filters NONE Steam 1 RUN: 3337c22a-ebbf-4933-81c0-1bf36a298598